fUST/lending_fUST_20241115
["ID","MTS","AMOUNT","RATE_DAILY","PERIOD"]
[342231856,1731605441016,-500.0,0.00016438,2]
[342231857,1731605441026,-611.29,0.00016438,2]
[342231858,1731605441035,-500.0,0.00016438,2]
[342231859,1731605441044,-500.0,0.00016438,2]
[342231860,1731605441053,-500.0,0.00016438,2]
[342231861,1731605441064,-500.0,0.00016438,2]
[342231862,1731605441076,-500.0,0.00016438,2]
[342231863,1731605441085,-500.0,0.00016438,2]
[342231864,1731605441094,-500.0,0.00016438,2]
[342231865,1731605441103,-500.0,0.00016438,2]
[342231866,1731605441113,-500.0,0.00016438,2]
[342231867,1731605441123,-500.0,0.00016438,2]
[342231868,1731605441132,-500.0,0.00016438,2]
[342231869,1731605441144,-500.0,0.00016438,2]
[342231870,1731605441153,-807.54,0.00016438,2]
[342231871,1731605441163,-515.04497631,0.00016438,2]
[342231872,1731605441172,-500.0,0.00016438,2]
[342231873,1731605441182,-500.0,0.00016438,2]
[342231874,1731605441192,-500.0,0.00016438,2]
[342231875,1731605441202,-500.0,0.00016438,2]
[342231876,1731605441211,-500.0,0.00016438,2]
[342231877,1731605441221,-500.0,0.00016438,2]
[342231878,1731605441231,-500.0,0.00016438,2]
[342231879,1731605441241,-500.0,0.00016438,2]
[342231880,1731605441254,-500.0,0.00016438,2]
[342231881,1731605441264,-599.38,0.00016438,2]
[342231882,1731605441274,-528.9331987,0.00016438,2]
[342231883,1731605441283,-500.0,0.00016438,2]
[342231884,1731605441292,-500.0,0.00016438,2]
[342231885,1731605441302,-397.16326296,0.00016438,2]
[342231886,1731605441311,-500.0,0.00016438,2]
[342231887,1731605441321,-500.0,0.00016438,2]
[342231888,1731605441330,-500.0,0.00016438,2]
[342231889,1731605441339,-500.0,0.00016438,2]
[342231890,1731605441348,-500.0,0.00016438,2]
[342231891,1731605441356,-500.0,0.00016438,2]
[342231892,1731605441366,-500.0,0.00016438,2]
[342231893,1731605441375,-500.0,0.00016438,2]
[342231894,1731605441384,-500.0,0.00016438,2]
[342231895,1731605441393,-501.95881715,0.00016438,2]
[342231896,1731605441402,-500.0,0.00016438,2]
[342231897,1731605441412,-500.0,0.00016438,2]
[342231898,1731605441421,-500.0,0.00016438,2]
[342231899,1731605441431,-500.0,0.00016438,2]
[342231900,1731605441440,-500.0,0.00016438,2]
[342231901,1731605441448,-500.0,0.00016438,2]
[342231902,1731605441458,-827.88,0.00016438,2]
[342231903,1731605441467,-500.0,0.00016438,2]
[342231904,1731605441477,-500.0,0.00016438,2]
[342231905,1731605441486,-500.0,0.00016438,2]
[342231906,1731605441495,-500.0,0.00016438,2]
[342231907,1731605441507,-500.0,0.00016438,2]
[342231908,1731605441516,-500.0,0.00016438,2]
[342231909,1731605441525,-500.0,0.00016438,2]
[342231910,1731605441535,-500.0,0.00016438,2]
[342231911,1731605441543,-500.0,0.00016438,2]
[342231912,1731605441554,-500.0,0.00016438,2]
[342231913,1731605441565,-500.0,0.00016438,2]
[342231914,1731605441574,-500.0,0.00016438,2]
[342231915,1731605441583,-500.0,0.00016438,2]
[342231916,1731605441592,-500.0,0.00016438,2]
[342231917,1731605441601,-501.49252692,0.00016438,2]
[342231918,1731605441611,-500.0,0.00016438,2]
[342231919,1731605441620,-500.0,0.00016438,2]
[342231920,1731605441629,-720.4,0.00016438,2]
[342231921,1731605441639,-500.0,0.00016438,2]
[342231922,1731605441648,-501.00349271,0.00016438,2]
[342231923,1731605441658,-471.3710102,0.00016438,2]
[342231924,1731605441667,-500.0,0.00016438,2]
[342231925,1731605441677,-749.56,0.00016438,2]
[342231926,1731605441686,-512.21960168,0.00016438,2]
[342231927,1731605441695,-500.0,0.00016438,2]
[342231928,1731605441705,-1008.28,0.00016438,2]
[342231929,1731605441714,-500.0,0.00016438,2]
[342231930,1731605441724,-535.19090583,0.00016438,2]
[342231931,1731605441735,-500.0,0.00016438,2]
[342231932,1731605441744,-500.0,0.00016438,2]
[342231933,1731605441756,-500.0,0.00016438,2]
[342231934,1731605441765,-500.0,0.00016438,2]
[342231935,1731605441774,-500.0,0.00016438,2]
[342231936,1731605441783,-500.0,0.00016438,2]
[342231937,1731605441792,-500.0,0.00016438,2]
[342231938,1731605441802,-500.0,0.00016438,2]
[342231939,1731605441811,-500.0,0.00016438,2]
[342231940,1731605441820,-500.0,0.00016438,2]
[342231941,1731605441830,-500.0,0.00016438,2]
[342231942,1731605441839,-500.0,0.00016438,2]
[342231943,1731605441848,-500.0,0.00016438,2]
[342231944,1731605441857,-514.65638375,0.00016438,2]
[342231945,1731605441866,-500.0,0.00016438,2]
[342231946,1731605441875,-500.0,0.00016438,2]
[342231947,1731605441886,-500.0,0.00016438,2]
[342231948,1731605441895,-573.0835702,0.00016438,2]
[342231949,1731605441904,-512.184799,0.00016438,2]
[342231950,1731605441914,-500.0,0.00016438,2]
[342231951,1731605441924,-500.0,0.00016438,2]
[342231952,1731605441933,-500.0,0.00016438,2]
[342231953,1731605441943,-500.0,0.00016438,2]
[342231954,1731605441953,-500.70919725,0.00016438,2]
[342231955,1731605441963,-500.0,0.00016438,2]
[342231956,1731605441973,-500.0,0.00016438,2]
[342231957,1731605441982,-500.0,0.00016438,2]
[342231958,1731605441992,-585.2,0.00016438,2]
[342231959,1731605442005,-517.23980437,0.00016438,2]
[342231960,1731605442020,-500.0,0.00016438,2]
[342231961,1731605442029,-500.0,0.00016438,2]
[342231962,1731605442039,-500.0,0.00016438,2]
[342231963,1731605442048,-500.0,0.00016438,2]
[342231964,1731605442058,-500.0,0.00016438,2]
[342231965,1731605442071,-500.0,0.00016438,2]
[342231966,1731605442080,-500.0,0.00016438,2]
[342231967,1731605442089,-500.0,0.00016438,2]
[342231968,1731605442099,-597.14500269,0.00016438,2]
[342231969,1731605442110,-933.4,0.00016438,2]
[342231970,1731605442120,-500.0,0.00016438,2]
[342231971,1731605442130,-500.0,0.00016438,2]
[342231972,1731605442142,-500.0,0.00016438,2]
[342231973,1731605442151,-500.0,0.00016438,2]
[342231974,1731605442161,-1689.53,0.00016438,2]
[342231975,1731605442170,-500.0,0.00016438,2]
[342231976,1731605442179,-513.6204826,0.00016438,2]
[342231977,1731605442189,-739.19,0.00016438,2]
[342231978,1731605442199,-506.41635772,0.00016438,2]
[342231979,1731605442209,-505.39781857,0.00016438,2]
[342231980,1731605442219,-500.0,0.00016438,2]
[342231981,1731605442230,-500.0,0.00016438,2]
[342231982,1731605442239,-504.30485902,0.00016438,2]
[342231983,1731605442256,-188.93818289,0.00016438,2]
[342231984,1731605442266,-500.0,0.00016438,2]
[342231985,1731605442276,-500.0,0.00016438,2]
[342231986,1731605442285,-500.0,0.00016438,2]
[342231987,1731605442295,-500.0,0.00016438,2]
[342231988,1731605442304,-862.93,0.00016438,2]
[342231989,1731605442314,-748.48,0.00016438,2]
[342231990,1731605442323,-500.0,0.00016438,2]
[342231991,1731605442334,-500.0,0.00016438,2]
[342231992,1731605442343,-505.99412047,0.00016438,2]
[342231993,1731605442352,-1000.0,0.00016438,2]
[342231994,1731605442361,-500.0,0.00016438,2]
[342231995,1731605442370,-910.6,0.00016438,2]
[342231996,1731605442379,-500.0,0.00016438,2]
[342231997,1731605442388,-508.04452425,0.00016438,2]
[342231998,1731605442397,-500.0,0.00016438,2]
[342231999,1731605442406,-500.0,0.00016438,2]
[342232000,1731605442415,-500.0,0.00016438,2]
[342232001,1731605442424,-6151.78,0.00016438,2]
[342232002,1731605442433,-500.0,0.00016438,2]
[342232003,1731605442442,-500.0,0.00016438,2]
[342232004,1731605442452,-504.11219345,0.00016438,2]
[342232005,1731605442461,-500.0,0.00016438,2]
[342232006,1731605442470,-500.0,0.00016438,2]
[342232007,1731605442479,-500.0,0.00016438,2]
[342232008,1731605442488,-6397.32,0.00016438,2]
[342232009,1731605442499,-500.0,0.00016438,2]
[342232010,1731605442508,-500.0,0.00016438,2]
[342232011,1731605442518,-500.0,0.00016438,2]
[342232012,1731605442527,-500.0,0.00016438,2]
[342232013,1731605442536,-500.0,0.00016438,2]
[342232014,1731605442545,-643.82,0.00016438,2]
[342232015,1731605442554,-512.60072008,0.00016438,2]
[342232016,1731605442563,-500.0,0.00016438,2]
[342232017,1731605442572,-500.0,0.00016438,2]
[342232018,1731605442582,-500.0,0.00016438,2]
[342232019,1731605442592,-500.0,0.00016438,2]
[342232020,1731605442602,-500.0,0.00016438,2]
[342232021,1731605442613,-1806.77,0.00016438,2]
[342232022,1731605442622,-2547.28,0.00016438,2]
[342232023,1731605442631,-500.0,0.00016438,2]
[342232024,1731605442640,-500.0,0.00016438,2]
[342232025,1731605442650,-500.0,0.00016438,2]
[342232026,1731605442659,-500.0,0.00016438,2]
[342232027,1731605442671,-527.67257267,0.00016438,2]
[342232028,1731605442680,-924.83,0.00016438,2]
[342232029,1731605442689,-500.0,0.00016438,2]
[342232030,1731605442698,-504.37074657,0.00016438,2]
[342232031,1731605442707,-500.0,0.00016438,2]
[342232032,1731605442716,-509.20842315,0.00016438,2]
[342232033,1731605442726,-500.0,0.00016438,2]
[342232034,1731605442735,-500.0,0.00016438,2]
[342232035,1731605442744,-501.56874201,0.00016438,2]
[342232036,1731605442756,-500.0,0.00016438,2]
[342232037,1731605442899,-500.0,0.00016438,2]
[342232039,1731605442909,-850.78,0.00016438,2]
[342232041,1731605442918,-474.92772853,0.00016438,2]
[342232043,1731605442928,-500.0,0.00016438,2]
[342232045,1731605442937,-500.0,0.00016438,2]
[342232046,1731605442947,-500.0,0.00016438,2]
[342232048,1731605442956,-500.0,0.00016438,2]
[342232049,1731605442965,-500.0,0.00016438,2]
[342232051,1731605442975,-500.0,0.00016438,2]
[342232053,1731605442985,-500.0,0.00016438,2]
[342232055,1731605442994,-500.0,0.00016438,2]
[342232057,1731605443004,-500.0,0.00016438,2]
[342232058,1731605443014,-1233.84,0.00016438,2]
[342232059,1731605443023,-500.0,0.00016438,2]
[342232060,1731605443032,-521.74223218,0.00016438,2]
[342232061,1731605443042,-500.0,0.00016438,2]
[342232063,1731605443051,-500.0,0.00016438,2]
[342232064,1731605443062,-500.0,0.00016438,2]
[342232065,1731605443075,-2064.75,0.00016438,2]
[342232066,1731605443085,-1805.67,0.00016438,2]
[342232067,1731605443094,-500.0,0.00016438,2]
[342232068,1731605443104,-500.0,0.00016438,2]
[342232069,1731605443114,-500.0,0.00016438,2]
[342232070,1731605443124,-500.0,0.00016438,2]
[342232071,1731605443134,-500.0,0.00016438,2]
[342232072,1731605443146,-500.0,0.00016438,2]
[342232073,1731605443156,-517.61473969,0.00016438,2]
[342232074,1731605443166,-500.0,0.00016438,2]
[342232075,1731605443176,-385.05540901,0.00016438,2]
[342232076,1731605443185,-1419.33,0.00016438,2]
[342232078,1731605443195,-300.78704109,0.00016438,2]
[342232080,1731605443204,-500.0,0.00016438,2]
[342232081,1731605443214,-500.0,0.00016438,2]
[342232083,1731605443223,-500.0,0.00016438,2]
[342232085,1731605443233,-481.93523364,0.00016438,2]
[342232087,1731605443242,-500.0,0.00016438,2]
[342232089,1731605443254,-500.0,0.00016438,2]
[342232090,1731605443263,-480.31944752,0.00016438,2]
[342232092,1731605443273,-500.0,0.00016438,2]
[342232094,1731605443284,-512.59342821,0.00016438,2]
[342232095,1731605443294,-2454.49,0.00016438,2]
[342232097,1731605443303,-526.86,0.00016438,2]
[342232098,1731605443313,-806.41,0.00016438,2]
[342232099,1731605443322,-500.0,0.00016438,2]
[342232100,1731605443331,-500.0,0.00016438,2]
[342232101,1731605443341,-500.0,0.00016438,2]
[342232102,1731605443350,-598.78,0.00016438,2]
[342232103,1731605443359,-981.61,0.00016438,2]
[342232104,1731605443368,-974.98,0.00016438,2]
[342232105,1731605443377,-500.0,0.00016438,2]
[342232106,1731605443387,-620.00647613,0.00016438,2]
[342232107,1731605443396,-500.0,0.00016438,2]
[342232108,1731605443405,-500.0,0.00016438,2]
[342232109,1731605443415,-500.0,0.00016438,2]
[342232110,1731605443424,-500.0,0.00016438,2]
[342232111,1731605443434,-1445.8,0.00016438,2]
[342232112,1731605443443,-500.0,0.00016438,2]
[342232113,1731605443453,-500.0,0.00016438,2]
[342232114,1731605443462,-500.0,0.00016438,2]
[342232115,1731605443471,-500.0,0.00016438,2]
[342232116,1731605443480,-3673.6,0.00016438,2]
[342232118,1731605443490,-982.59,0.00016438,2]
[342232120,1731605443501,-500.57247878,0.00016438,2]
[342232122,1731605443511,-1953.46,0.00016438,2]
[342232123,1731605443520,-500.0,0.00016438,2]
[342232124,1731605443530,-500.0,0.00016438,2]
[342232125,1731605443540,-500.0,0.00016438,2]
[342232126,1731605443549,-500.0,0.00016438,2]
[342232127,1731605443558,-500.0,0.00016438,2]
[342232128,1731605443568,-307.96963345,0.00016438,2]
[342232129,1731605443578,-500.0,0.00016438,2]
[342232130,1731605443588,-500.0,0.00016438,2]
[342232131,1731605443597,-500.0,0.00016438,2]
[342232132,1731605443608,-2648.22,0.00016438,2]
[342232133,1731605443617,-500.0,0.00016438,2]
[342232134,1731605443626,-500.0,0.00016438,2]
[342232135,1731605443635,-517.68693142,0.00016438,2]
[342232136,1731605443645,-895.3,0.00016438,2]
[342232137,1731605443654,-500.0,0.00016438,2]
[342232138,1731605443664,-500.0,0.00016438,2]
[342232139,1731605443674,-500.0,0.00016438,2]
[342232140,1731605443683,-1551.75,0.00016438,2]
[342232141,1731605443693,-500.0,0.00016438,2]
[342232142,1731605443702,-500.0,0.00016438,2]
[342232143,1731605443711,-500.0,0.00016438,2]
[342232144,1731605443722,-500.0,0.00016438,2]
[342232145,1731605443733,-4593.32,0.00016438,2]
[342232146,1731605443742,-500.0,0.00016438,2]
[342232147,1731605443756,-697.02,0.00016438,2]
[342232148,1731605443772,-500.0,0.00016438,2]
[342232149,1731605443781,-500.0,0.00016438,2]
[342232150,1731605443791,-380.96799952,0.00016438,2]
[342232151,1731605443801,-500.0,0.00016438,2]
[342232152,1731605443811,-500.0,0.00016438,2]
[342232153,1731605443820,-1016.32,0.00016438,2]
[342232154,1731605443830,-500.0,0.00016438,2]
[342232155,1731605443839,-500.0,0.00016438,2]
[342232156,1731605443849,-500.0,0.00016438,2]
[342232157,1731605443859,-500.0,0.00016438,2]
[342232158,1731605443868,-500.0,0.00016438,2]
[342232159,1731605443878,-722.93,0.00016438,2]
[342232160,1731605443888,-517.94400229,0.00016438,2]
[342232161,1731605443897,-500.0,0.00016438,2]
[342232162,1731605443907,-1011.11,0.00016438,2]
[342232163,1731605443916,-500.0,0.00016438,2]
[342232164,1731605443925,-500.0,0.00016438,2]
[342232165,1731605443934,-500.0,0.00016438,2]
[342232166,1731605443944,-500.0,0.00016438,2]
[342232167,1731605443954,-500.0,0.00016438,2]
[342232168,1731605443963,-500.0,0.00016438,2]
[342232169,1731605443973,-736.16,0.00016438,2]
[342232170,1731605443982,-642.08,0.00016438,2]
[342232171,1731605443991,-2065.52,0.00016438,2]
[342232172,1731605444002,-500.0,0.00016438,2]
[342232173,1731605444011,-500.0,0.00016438,2]
[342232174,1731605444020,-500.0,0.00016438,2]
[342232175,1731605444030,-500.0,0.00016438,2]
[342232176,1731605444041,-1060.63,0.00016438,2]
[342232177,1731605444051,-500.0,0.00016438,2]
[342232178,1731605444060,-500.0,0.00016438,2]
[342232179,1731605444073,-500.0,0.00016438,2]
[342232180,1731605444083,-452.40090341,0.00016438,2]
[342232181,1731605444092,-500.0,0.00016438,2]
[342232182,1731605444102,-500.0,0.00016438,2]
[342232183,1731605444113,-888.51,0.00016438,2]
[342232184,1731605444122,-500.0,0.00016438,2]
[342232185,1731605444132,-500.0,0.00016438,2]
[342232186,1731605444142,-500.0,0.00016438,2]
[342232187,1731605444152,-502.9603163,0.00016438,2]
[342232188,1731605444162,-500.0,0.00016438,2]
[342232189,1731605444171,-500.0,0.00016438,2]
[342232190,1731605444181,-543.76928224,0.00016438,2]
[342232191,1731605444190,-500.0,0.00016438,2]
[342232192,1731605444200,-500.0,0.00016438,2]
[342232193,1731605444209,-500.0,0.00016438,2]
[342232194,1731605444219,-8143.17,0.00016438,2]
[342232195,1731605444228,-806.39,0.00016438,2]
[342232196,1731605444240,-500.0,0.00016438,2]
[342232197,1731605444251,-501.06862261,0.00016438,2]
[342232198,1731605444262,-826.17,0.00016438,2]
[342232199,1731605444272,-500.0,0.00016438,2]
[342232200,1731605444283,-502.3884302,0.00016438,2]
[342232201,1731605444292,-500.0,0.00016438,2]
[342232202,1731605444302,-508.65073064,0.00016438,2]
[342232203,1731605444312,-500.0,0.00016438,2]
[342232204,1731605444322,-747.19,0.00016438,2]
[342232205,1731605444332,-500.0,0.00016438,2]
[342232206,1731605444342,-1089.53,0.00016438,2]
[342232207,1731605444352,-4702.87,0.00016438,2]
[342232208,1731605444362,-465.8646178,0.00016438,2]
[342232209,1731605444371,-500.0,0.00016438,2]
[342232210,1731605444380,-500.0,0.00016438,2]
[342232211,1731605444391,-500.0,0.00016438,2]
[342232212,1731605444400,-500.0,0.00016438,2]
[342232213,1731605444409,-500.0,0.00016438,2]
[342232214,1731605444420,-500.0,0.00016438,2]
[342232215,1731605444430,-516.4377706,0.00016438,2]
[342232216,1731605444440,-500.0,0.00016438,2]
[342232217,1731605444449,-500.0,0.00016438,2]
[342232218,1731605444458,-1048.03,0.00016438,2]
[342232219,1731605444468,-502.49398749,0.00016438,2]
[342232220,1731605444477,-500.0,0.00016438,2]
[342232221,1731605444487,-500.0,0.00016438,2]
[342232222,1731605444497,-500.0,0.00016438,2]
[342232223,1731605444509,-500.0,0.00016438,2]
[342232224,1731605444519,-500.0,0.00016438,2]
[342232225,1731605444528,-500.0,0.00016438,2]
[342232226,1731605444537,-15287.76749413,0.00016438,2]
[342232227,1731605444560,-5532.72250587,0.00016438,2]
[342232228,1731605444569,-500.0,0.00016438,2]
[342232229,1731605444578,-500.0,0.00016438,2]
[342232230,1731605444588,-500.0,0.00016438,2]
[342232231,1731605444597,-500.0,0.00016438,2]
[342232232,1731605444606,-500.0,0.00016438,2]
[342232233,1731605444616,-500.0,0.00016438,2]
[342232234,1731605444625,-500.0,0.00016438,2]
[342232235,1731605444635,-500.0,0.00016438,2]
[342232236,1731605444644,-500.0,0.00016438,2]
[342232237,1731605444654,-563.40491293,0.00016473,2]
[342232238,1731605444663,-500.0,0.00016473,2]
[342232239,1731605444673,-500.0,0.00016473,2]
[342232240,1731605444683,-605.96308215,0.00016473,2]
[342232241,1731605444692,-500.0,0.00016473,2]
[342232242,1731605444703,-500.02318707,0.00016473,2]
[342232243,1731605444713,-500.0,0.00016473,2]
[342232244,1731605444723,-500.0,0.00016473,2]
[342232245,1731605444733,-500.0,0.00016473,2]
[342232246,1731605444742,-500.0,0.00016473,2]
[342232247,1731605444755,-500.0,0.00016473,2]
[342232248,1731605444766,-500.0,0.00016473,2]
[342232249,1731605444776,-500.0,0.00016473,2]
[342232250,1731605444787,-500.36499101,0.00016473,2]
[342232251,1731605444796,-500.0,0.00016473,2]
[342232252,1731605444806,-500.0,0.00016473,2]
[342232253,1731605444816,-206.59116188,0.00016473,2]
[342232254,1731605444825,-1593.43851426,0.00016612,2]
[342232255,1731605444835,-150.112233,0.000167,2]
[342232256,1731605444845,-150.112236,0.000167,2]
[342232257,1731605444854,-270.624562,0.000167,2]
[342232258,1731605444864,-500.0,0.00016711,2]
[342232259,1731605444873,-500.0,0.00016711,2]
[342232260,1731605444883,-500.0,0.00016711,2]
[342232261,1731605444892,-500.0,0.00016711,2]
[342232262,1731605444902,-500.0,0.00016711,2]
[342232263,1731605444912,-500.0,0.00016711,2]
[342232264,1731605444921,-500.0,0.00016711,2]
[342232265,1731605444931,-500.0,0.00016711,2]
[342232266,1731605444940,-347.97,0.00016711,2]
[342232267,1731605444950,-501.29323074,0.00016712,2]
[342232268,1731605444959,-535.1258408,0.00016712,2]
[342232269,1731605444968,-500.0,0.00016712,2]
[342232270,1731605444978,-500.0,0.00016712,2]
[342232271,1731605444987,-500.0,0.00016712,2]
[342232272,1731605444997,-500.0,0.00016712,2]
[342232273,1731605445009,-625.70206321,0.00016712,2]
[342232274,1731605445019,-502.65333536,0.00016712,2]
[342232275,1731605445029,-500.0,0.00016712,2]
[342232276,1731605445038,-500.0,0.00016712,2]
[342232277,1731605445049,-644.61703493,0.00016712,2]
[342232278,1731605445060,-504.38449644,0.00016712,2]
[342232279,1731605445081,-500.0,0.00016712,2]
[342232280,1731605445102,-501.29476016,0.00016712,2]
[342232281,1731605445122,-500.0,0.00016712,2]
[342232282,1731605445133,-500.0,0.00016712,2]
[342232283,1731605445144,-401.0631328,0.00016712,2]
[342232284,1731605445307,-98.9368672,0.00016712,2]
[342232285,1731605445317,-500.0,0.00016712,2]
[342232286,1731605445327,-500.0,0.00016712,2]
[342232287,1731605445337,-500.0,0.00016712,2]
[342232288,1731605445346,-500.00000001,0.00016712,2]
[342232289,1731605445356,-500.0,0.00016712,2]
[342232290,1731605445365,-552.19850831,0.00016712,2]
[342232291,1731605445375,-200.0,0.00016712,2]
[342232292,1731605445384,-500.0,0.00016712,2]
[342232293,1731605445393,-501.25180659,0.00016712,2]
[342232294,1731605445402,-500.0,0.00016712,2]
[342232295,1731605445411,-500.0,0.00016712,2]
[342232296,1731605445420,-530.27744143,0.00016712,2]
[342232297,1731605445429,-522.43146099,0.00016712,2]
[342232298,1731605445439,-500.0,0.00016712,2]
[342232299,1731605445448,-500.0,0.00016712,2]
[342232300,1731605445457,-500.0,0.00016712,2]
[342232301,1731605445467,-519.08978624,0.00016712,2]
[342232302,1731605445476,-526.07153205,0.00016712,2]
[342232303,1731605445485,-500.0,0.00016712,2]
[342232304,1731605445494,-500.0,0.00016712,2]
[342232305,1731605445508,-546.39082937,0.00016712,2]
[342232306,1731605445517,-500.0,0.00016712,2]
[342232307,1731605445526,-500.0,0.00016712,2]
[342232308,1731605445536,-734.73,0.00016712,2]
[342232309,1731605445546,-500.0,0.00016712,2]
[342232310,1731605445555,-500.0,0.00016712,2]
[342232311,1731605445564,-500.0,0.00016712,2]
[342232312,1731605445573,-455.09859796,0.00016712,2]
[342232313,1731605445583,-500.0,0.00016712,2]
[342232314,1731605445592,-500.0,0.00016712,2]
[342232315,1731605445601,-786.04,0.00016712,2]
[342232316,1731605445611,-540.04787513,0.00016712,2]
[342232317,1731605445620,-500.0,0.00016712,2]
[342232318,1731605445630,-500.0,0.00016712,2]
[342232319,1731605445639,-500.0,0.00016712,2]
[342232320,1731605445773,-189.50913106,0.00016712,2]
[342232321,1731605445782,-500.0,0.00016712,2]
[342232322,1731605445791,-500.0,0.00016712,2]
[342232323,1731605445801,-500.0,0.00016712,2]
[342232324,1731605445810,-500.0,0.00016712,2]
[342232325,1731605445819,-500.0,0.00016712,2]
[342232326,1731605445828,-500.0,0.00016712,2]
[342232327,1731605445838,-500.0,0.00016712,2]
[342232328,1731605445847,-500.0,0.00016712,2]
[342232329,1731605445857,-500.0,0.00016712,2]
[342232330,1731605445866,-593.31774772,0.00016712,2]
[342232331,1731605445875,-500.0,0.00016712,2]
[342232332,1731605445885,-573.67588833,0.00016712,2]
[342232334,1731605445894,-559.52,0.00016712,2]
[342232335,1731605445905,-500.0,0.00016712,2]
[342232336,1731605445915,-500.0,0.00016712,2]
[342232337,1731605445926,-500.0,0.00016712,2]
[342232338,1731605445938,-500.0,0.00016712,2]
[342232339,1731605445950,-707.52,0.00016712,2]
[342232340,1731605445959,-500.0,0.00016712,2]
[342232341,1731605445968,-500.0,0.00016712,2]
[342232342,1731605445977,-500.0,0.00016712,2]
[342232344,1731605445987,-500.0,0.00016712,2]
[342232346,1731605445996,-500.0,0.00016712,2]
[342232347,1731605446006,-500.0,0.00016712,2]
[342232348,1731605446015,-500.0,0.00016712,2]
[342232349,1731605446025,-500.0,0.00016712,2]
[342232350,1731605446034,-500.0,0.00016712,2]
[342232351,1731605446044,-500.0,0.00016712,2]
[342232352,1731605446054,-876.64,0.00016712,2]
[342232353,1731605446063,-500.0,0.00016712,2]
[342232355,1731605446077,-272.44879828,0.00016712,2]
[342232357,1731605446086,-500.0,0.00016712,2]
[342232358,1731605446096,-500.0,0.00016712,2]
[342232359,1731605446105,-314.17095435,0.00016712,2]
[342232365,1731605446416,-1002.34275138,0.00016338,2]
[342232366,1731605446426,-503.1482682,0.00016438,2]
[342232367,1731605446436,-500.0,0.00016438,2]
[342232368,1731605446446,-185.82904565,0.00016712,2]
[342232369,1731605446455,-500.0,0.00016712,2]
[342232370,1731605446465,-500.0,0.00016712,2]
[342232371,1731605446474,-18.27993477,0.00016712,2]
[342232372,1731605446486,-918.30006523,0.00016712,2]
[342232373,1731605446496,-810.65,0.00016712,2]
[342232374,1731605446509,-421.07828109,0.00016712,2]
[342232375,1731605446518,-746.82,0.00016712,2]
[342232376,1731605446527,-500.0,0.00016712,2]
[342232377,1731605446537,-500.0,0.00016712,2]
[342232378,1731605446546,-500.0,0.00016712,2]
[342232379,1731605446556,-1275.63,0.00016712,2]
[342232380,1731605446569,-500.0,0.00016712,2]
[342232381,1731605446578,-500.0,0.00016712,2]
[342232382,1731605446588,-500.0,0.00016712,2]
[342232383,1731605446597,-500.0,0.00016712,2]
[342232384,1731605446607,-500.0,0.00016712,2]
[342232385,1731605446616,-500.0,0.00016712,2]
[342232386,1731605446626,-500.0,0.00016712,2]
[342232387,1731605446636,-500.0,0.00016712,2]